fUSD/lending_fUSD_20250630
["ID","MTS","AMOUNT","RATE_DAILY","PERIOD"]
[368693471,1751302023282,-490.0,0.00013894,2]
[368693472,1751302023314,-637.59604517,0.00013894,2]
[368693473,1751302023345,-490.0,0.00013894,2]
[368693474,1751302023377,-490.0,0.00013894,2]
[368693475,1751302023409,-890.56,0.00013894,2]
[368693476,1751302023442,-1286.05,0.00013894,2]
[368693477,1751302023474,-490.0,0.00013894,2]
[368693478,1751302023508,-1177.84,0.00013894,2]
[368693479,1751302023539,-819.33,0.00013894,2]
[368693480,1751302023820,-581.51,0.00013894,2]
[368693481,1751302023851,-490.0,0.00013894,2]
[368693482,1751302023882,-490.0,0.00013894,2]
[368693483,1751302023916,-490.0,0.00013894,2]
[368693484,1751302023949,-490.0,0.00013894,2]
[368693485,1751302023982,-490.0,0.00013894,2]
[368693486,1751302024015,-1396.27,0.00013894,2]
[368693487,1751302024046,-1472.44,0.00013894,2]
[368693488,1751302024078,-490.0,0.00013894,2]
[368693489,1751302024110,-1008.04,0.00013894,2]
[368693490,1751302024140,-490.0,0.00013894,2]
[368693491,1751302024171,-1068.88,0.00013894,2]
[368693492,1751302024204,-1068.88,0.00013894,2]
[368693493,1751302024236,-1068.88,0.00013894,2]
[368693494,1751302024268,-1068.88,0.00013894,2]
[368693495,1751302024298,-1068.88,0.00013894,2]
[368693496,1751302024329,-1180.49,0.00013894,2]
[368693497,1751302024360,-490.0,0.00013894,2]
[368693498,1751302024722,-490.0,0.00013894,2]
[368693499,1751302024751,-490.0,0.00013894,2]
[368693500,1751302024780,-490.0,0.00013894,2]
[368693501,1751302024811,-490.0,0.00013894,2]
[368693502,1751302024840,-539.08,0.00013894,2]
[368693503,1751302024868,-490.0,0.00013895,2]
[368693504,1751302024898,-859.72,0.00013895,2]
[368693505,1751302024927,-490.0,0.00013895,2]
[368693506,1751302024958,-490.0,0.00013895,2]
[368693507,1751302024988,-490.0,0.00013895,2]
[368693508,1751302025020,-490.0,0.00013895,2]
[368693509,1751302025050,-490.0,0.00013895,2]
[368693510,1751302025079,-490.0,0.00013895,2]
[368693511,1751302025108,-490.0,0.00013895,2]
[368693512,1751302025138,-490.0,0.00013895,2]
[368693513,1751302025169,-490.0,0.00013895,2]
[368693514,1751302025200,-490.0,0.00013895,2]
[368693515,1751302025228,-338.78039165,0.00013895,2]
[368693516,1751302025406,-694.04,0.00013895,2]
[368693517,1751302025438,-490.0,0.00013895,2]
[368693518,1751302025471,-490.0,0.00013895,2]
[368693519,1751302025502,-584.7277112,0.00013895,2]
[368693520,1751302025534,-490.0,0.00013895,2]
[368693521,1751302025565,-490.0,0.00013895,2]
[368693522,1751302025597,-1000.0,0.00013895,2]
[368693523,1751302025632,-1549.9037943,0.00013895,2]
[368693524,1751302026024,-490.0,0.00013894,2]
[368693525,1751302026054,-490.0,0.00013895,2]
[368693526,1751302026085,-216.87291111,0.00013895,2]
[368693527,1751302026115,-490.0,0.00013895,2]
[368693528,1751302026146,-710.88,0.00013895,2]
[368693529,1751302026176,-935.47,0.00013895,2]
[368693530,1751302026207,-490.0,0.00013895,2]
[368693531,1751302026237,-490.0,0.00013895,2]
[368693532,1751302026266,-490.0,0.00013895,2]
[368693533,1751302026296,-490.0,0.00013895,2]
[368693534,1751302026327,-512.15,0.00013895,2]
[368693535,1751302026357,-502.13977881,0.00013895,2]
[368693536,1751302026386,-490.0,0.00013895,2]
[368693537,1751302026416,-490.0,0.00013895,2]
[368693538,1751302026446,-490.0,0.00013895,2]
[368693539,1751302026476,-490.0,0.00013895,2]
[368693540,1751302026508,-835.22,0.00013895,2]
[368693541,1751302026540,-490.0,0.00013895,2]
[368693542,1751302026572,-490.0,0.00013895,2]
[368693543,1751302026604,-490.0,0.00013895,2]
[368693544,1751302026637,-490.0,0.00013895,2]
[368693545,1751302026669,-490.0,0.00013895,2]
[368693546,1751302026699,-1104.1,0.00013895,2]
[368693547,1751302026730,-490.0,0.00013895,2]
[368693548,1751302026760,-490.0,0.00013895,2]
[368693549,1751302026791,-490.0,0.00013895,2]
[368693550,1751302026821,-490.0,0.00013895,2]
[368693551,1751302026851,-45.17462016,0.00013895,2]
[368693552,1751302028182,-675.98537984,0.00013895,2]
[368693553,1751302028216,-801.14,0.00013895,2]
[368693554,1751302028259,-490.0,0.00013895,2]
[368693555,1751302028290,-490.0,0.00013895,2]
[368693556,1751302028323,-525.1,0.00013895,2]
[368693557,1751302028354,-1181.69,0.00013895,2]
[368693558,1751302028385,-490.0,0.00013895,2]
[368693559,1751302028417,-490.0,0.00013895,2]
[368693560,1751302028449,-1044.95,0.00013895,2]
[368693561,1751302028487,-490.0,0.00013895,2]
[368693562,1751302028522,-490.0,0.00013895,2]
[368693563,1751302028555,-490.0,0.00013895,2]
[368693564,1751302028589,-490.0,0.00013895,2]
[368693565,1751302028626,-870.46,0.00013895,2]
[368693566,1751302028661,-490.0,0.00013895,2]
[368693567,1751302028696,-714.86,0.00013895,2]
[368693568,1751302028731,-997.14,0.00013895,2]
[368693569,1751302028764,-832.98,0.00013895,2]
[368693570,1751302028797,-494.59,0.00013895,2]
[368693571,1751302028830,-1323.96,0.00013895,2]
[368693572,1751302028864,-490.0,0.00013895,2]
[368693573,1751302028898,-258.50924032,0.00013895,2]
[368693574,1751302029677,-490.0,0.00013893,2]
[368693575,1751302029709,-490.0,0.00013894,2]
[368693576,1751302029741,-757.27075968,0.00013895,2]
[368693577,1751302029769,-490.0,0.00013895,2]
[368693578,1751302029802,-426.90422468,0.00013895,2]
[368693579,1751302029832,-490.0,0.00013895,2]
[368693580,1751302029862,-490.0,0.00013895,2]
[368693581,1751302029892,-490.0,0.00013895,2]
[368693582,1751302029922,-490.0,0.00013895,2]
[368693583,1751302029951,-490.0,0.00013895,2]
[368693584,1751302029982,-538.31,0.00013895,2]
[368693585,1751302030012,-490.0,0.00013895,2]
[368693586,1751302030043,-490.0,0.00013895,2]
[368693587,1751302030072,-151.0,0.00013895,2]
[368693588,1751302030101,-490.0,0.00013895,2]
[368693589,1751302030130,-490.0,0.00013895,2]
[368693590,1751302030159,-677.35,0.00013895,2]
[368693591,1751302030189,-490.0,0.00013895,2]
[368693592,1751302030220,-310.39290087,0.00013895,2]
[368693593,1751302030250,-490.0,0.00013895,2]
[368693594,1751302030280,-490.0,0.00013895,2]
[368693595,1751302030312,-151.0,0.00013895,2]
[368693596,1751302030340,-786.68,0.00013895,2]
[368693597,1751302030371,-728.76,0.00013895,2]
[368693598,1751302030402,-490.0,0.00013895,2]
[368693599,1751302030432,-490.0,0.00013895,2]
[368693600,1751302030463,-703.11,0.00013895,2]
[368693601,1751302030495,-974.35,0.00013895,2]
[368693602,1751302030527,-212.84422954,0.00013895,2]
[368693603,1751302030977,-504.05577046,0.00013895,2]
[368693604,1751302031015,-490.0,0.00013895,2]
[368693605,1751302031049,-490.0,0.00013895,2]
[368693606,1751302031081,-500.0,0.00013895,2]
[368693607,1751302031113,-490.0,0.00013895,2]
[368693608,1751302031146,-490.0,0.00013895,2]
[368693609,1751302031177,-490.0,0.00013895,2]
[368693610,1751302031208,-201.93912617,0.00013895,2]
[368693611,1751302031238,-490.0,0.00013895,2]
[368693612,1751302031267,-581.95,0.00013895,2]
[368693613,1751302031297,-1029.77,0.00013895,2]
[368693614,1751302031329,-490.0,0.00013895,2]
[368693615,1751302031359,-277.65255776,0.00013895,2]
[368693616,1751302031393,-151.0,0.00013895,2]
[368693617,1751302031423,-495.38,0.00013895,2]
[368693618,1751302031454,-151.0,0.00013895,2]
[368693619,1751302031487,-472.9330128,0.00013895,2]
[368693620,1751302031517,-1097.78,0.00013895,2]
[368693621,1751302031550,-151.0,0.00013895,2]
[368693622,1751302031581,-549.03,0.00013895,2]
[368693623,1751302031611,-264.61520854,0.00013895,2]
[368693624,1751302031647,-490.0,0.00013895,2]
[368693625,1751302031678,-1192.42,0.00013895,2]
[368693626,1751302031708,-490.0,0.00013895,2]
[368693627,1751302031739,-973.69,0.00013895,2]
[368693628,1751302031768,-973.99,0.00013895,2]
[368693629,1751302031799,-490.0,0.00013895,2]
[368693630,1751302031829,-490.0,0.00013895,2]
[368693631,1751302032172,-490.0,0.00013893,2]
[368693632,1751302032202,-490.0,0.00013894,2]
[368693633,1751302032232,-490.0,0.00013895,2]
[368693634,1751302032261,-826.64,0.00013895,2]
[368693635,1751302032292,-490.0,0.00013895,2]
[368693636,1751302032322,-490.0,0.00013895,2]
[368693637,1751302032353,-490.0,0.00013895,2]
[368693638,1751302032383,-592.23,0.00013895,2]
[368693639,1751302032415,-490.0,0.00013895,2]
[368693640,1751302032445,-482.11232218,0.00013895,2]
[368693641,1751302032476,-490.0,0.00013895,2]
[368693642,1751302032507,-490.0,0.00013895,2]
[368693643,1751302032538,-559.35,0.00013895,2]
[368693644,1751302032567,-530.37,0.00013895,2]
[368693645,1751302032598,-575.77,0.00013895,2]
[368693646,1751302032632,-490.0,0.00013895,2]
[368693647,1751302032663,-1057.39,0.00013895,2]
[368693648,1751302032696,-490.0,0.00013895,2]
[368693649,1751302032729,-308.80865646,0.00013895,2]
[368693650,1751302033095,-1030.59,0.00013895,2]
[368693651,1751302033126,-273.01610196,0.00013895,2]
[368693652,1751302033155,-490.0,0.00013895,2]
[368693653,1751302033186,-490.0,0.00013895,2]
[368693654,1751302033216,-490.0,0.00013895,2]
[368693655,1751302033246,-490.0,0.00013895,2]
[368693656,1751302033275,-582.61,0.00013895,2]
[368693657,1751302033547,-1948.0,0.00013895,2]
[368693658,1751302033580,-501.86,0.00013895,2]
[368693659,1751302033612,-855.15,0.00013895,2]
[368693660,1751302033647,-490.0,0.00013895,2]
[368693661,1751302033678,-490.0,0.00013895,2]
[368693662,1751302033710,-490.0,0.00013895,2]
[368693663,1751302033740,-490.0,0.00013895,2]
[368693664,1751302033771,-490.0,0.00013895,2]
[368693665,1751302033799,-490.0,0.00013895,2]
[368693666,1751302033829,-807.66,0.00013895,2]
[368693667,1751302033860,-616.03,0.00013895,2]
[368693668,1751302033891,-490.0,0.00013895,2]
[368693669,1751302033922,-490.0,0.00013895,2]
[368693670,1751302033955,-547.29,0.00013895,2]
[368693671,1751302033986,-714.93,0.00013895,2]
[368693672,1751302034017,-490.0,0.00013895,2]
[368693673,1751302034048,-490.0,0.00013895,2]
[368693674,1751302034082,-490.0,0.00013895,2]
[368693675,1751302034113,-490.0,0.00013895,2]
[368693676,1751302034144,-490.0,0.00013895,2]
[368693677,1751302034175,-490.0,0.00013895,2]
[368693678,1751302034205,-490.0,0.00013895,2]
[368693679,1751302034236,-490.0,0.00013895,2]
[368693680,1751302034266,-490.0,0.00013895,2]
[368693681,1751302034297,-490.0,0.00013895,2]
[368693685,1751302055861,-192.2258388,0.00013885,2]
[368693686,1751302055906,-15.1741612,0.00013885,2]
[368693687,1751302055916,-490.0,0.00013892,2]
[368693688,1751302055926,-490.0,0.00013893,2]
[368693689,1751302055936,-490.0,0.00013893,2]
[368693690,1751302055945,-462.8258388,0.00013893,2]
[368693691,1751302055966,-27.1741612,0.00013893,2]
[368693692,1751302055975,-474.6858388,0.00013893,2]
[368693693,1751302056003,-15.3141612,0.00013893,2]
[368693694,1751302056012,-300.0,0.00013893,2]
[368693695,1751302056022,-539.8358388,0.00013893,2]
[368693696,1751302056036,-490.0,0.00013893,2]
[368693697,1751302056056,-490.0,0.00013893,2]
[368693698,1751302056079,-469.2941612,0.00013893,2]
[368693699,1751302056089,-20.7058388,0.00013893,2]
[368693700,1751302056167,-490.0,0.00013893,2]
[368693701,1751302056207,-163.8141612,0.00013893,2]
[368693702,1751302056216,-326.1858388,0.00013893,2]
[368693703,1751302056235,-490.0,0.00013893,2]
[368693704,1751302056259,-807.66,0.00013893,2]
[368693705,1751302056274,-551.8541612,0.00013893,2]
[368693706,1751302056284,-64.1758388,0.00013893,2]
[368693707,1751302056327,-425.8241612,0.00013893,2]
[368693708,1751302056336,-64.1758388,0.00013893,2]
[368693709,1751302056359,-425.8241612,0.00013893,2]
[368693710,1751302056370,-64.1758388,0.00013893,2]
[368693711,1751302056385,-547.29,0.00013893,2]
[368693712,1751302056400,-714.93,0.00013893,2]
[368693713,1751302056423,-490.0,0.00013893,2]
[368693714,1751302056443,-234.0441612,0.00013893,2]
[368693715,1751302056454,-255.9558388,0.00013893,2]
[368693716,1751302056489,-234.0441612,0.00013893,2]
[368693717,1751302056499,-255.9558388,0.00013893,2]
[368693718,1751302056514,-234.0441612,0.00013893,2]
[368693719,1751302056523,-255.9558388,0.00013893,2]
[368693720,1751302056538,-234.0441612,0.00013893,2]
[368693721,1751302056547,-255.9558388,0.00013893,2]
[368693722,1751302056570,-234.0441612,0.00013893,2]
[368693723,1751302056580,-255.9558388,0.00013894,2]
[368693724,1751302056635,-234.0441612,0.00013894,2]
[368693725,1751302056646,-255.9558388,0.00013894,2]
[368693726,1751302056712,-234.0441612,0.00013894,2]
[368693727,1751302056722,-255.9558388,0.00013894,2]
[368693728,1751302056769,-234.0441612,0.00013894,2]
[368693729,1751302056780,-255.9558388,0.00013894,2]
[368693730,1751302056872,-234.0441612,0.00013894,2]
[368693731,1751302056882,-255.9558388,0.00013894,2]
[368693732,1751302056972,-267.6541612,0.00013894,2]
[368693733,1751302056983,-110.5058388,0.00013894,2]
[368693776,1751302158743,-212.92072347,0.00013793,2]
[368693777,1751302158773,-597.06067931,0.00013818,2]
[368693778,1751302158803,-154.984296,0.00013818,2]
[368693779,1751302158834,-300.0,0.00013891,2]
[368693780,1751302158864,-1553.29,0.00013892,2]
[368693781,1751302158893,-490.0,0.00013892,2]
[368693782,1751302159226,-1160.57,0.00013892,2]
[368693783,1751302159269,-387.17860244,0.00013892,2]
[368693784,1751302159479,-287.99139756,0.00013892,2]
[368693785,1751302159510,-490.0,0.00013892,2]
[368693786,1751302159540,-1221.35,0.00013892,2]
[368693787,1751302159663,-2059.15,0.00013892,2]
[368693788,1751302159825,-4118.3,0.00013892,2]
[368693789,1751302159899,-111.85860244,0.00013892,2]
[368693790,1751302159928,-1651.54139756,0.00013892,2]
[368693791,1751302159937,-490.0,0.00013892,2]
[368693792,1751302159946,-4074.33,0.00013892,2]
[368693793,1751302159956,-490.0,0.00013892,2]
[368693794,1751302159965,-979.51,0.00013892,2]
[368693795,1751302159974,-255.46860244,0.00013892,2]
[368693796,1751302160008,-1109.70139756,0.00013892,2]
[368693797,1751302160036,-490.0,0.00013892,2]
[368693798,1751302160067,-2285.65,0.00013892,2]
[368693799,1751302160097,-482.82720488,0.00013892,2]
[368693800,1751302160165,-1263.64279512,0.00013892,2]
[368693801,1751302160174,-249.87860244,0.00013893,2]
[368693802,1751302160207,-240.12139756,0.00013893,2]
[368693803,1751302160235,-2378.15,0.00013893,2]
[368693804,1751302160264,-490.0,0.00013893,2]
[368693805,1751302160293,-490.0,0.00013893,2]
[368693806,1751302160321,-490.0,0.00013893,2]
[368693807,1751302160349,-490.0,0.00013893,2]
[368693808,1751302160379,-353.45720488,0.00013893,2]
[368693809,1751302160651,-136.54279512,0.00013893,2]
[368693810,1751302160684,-490.0,0.00013893,2]
[368693811,1751302160714,-490.0,0.00013893,2]
[368693812,1751302160747,-1389.86,0.00013893,2]
[368693813,1751302160777,-2286.78440976,0.00013893,2]
[368693814,1751302161035,-413.62559024,0.00013893,2]
[368693815,1751302161065,-490.0,0.00013893,2]
[368693816,1751302161094,-490.0,0.00013893,2]
[368693817,1751302161126,-3598.42,0.00013893,2]
[368693818,1751302161425,-490.0,0.00013893,2]
[368693819,1751302161454,-490.0,0.00013893,2]
[368693820,1751302161485,-490.0,0.00013893,2]
[368693821,1751302161514,-420.78155515,0.00013893,2]
[368693822,1751302161544,-490.0,0.00013893,2]
[368693823,1751302161573,-490.0,0.00013893,2]
[368693824,1751302161963,-3322.12978292,0.00013893,2]
[368693825,1751302161986,-15.90881952,0.00013893,2]
[368693826,1751302162048,-490.0,0.00013893,2]
[368693827,1751302162068,-490.0,0.00013893,2]
[368693828,1751302162087,-490.0,0.00013893,2]
[368693829,1751302162112,-420.78155515,0.00013893,2]
[368693830,1751302162129,-490.0,0.00013893,2]
[368693831,1751302162144,-490.0,0.00013893,2]
[368693832,1751302162165,-4258.4368897,0.00013893,2]
[368693833,1751302162190,-8186.64295271,0.00013893,2]
[368693834,1751302162199,-1285.81,0.00013893,2]
[368693835,1751302162210,-490.0,0.00013893,2]
[368693836,1751302162219,-37.54704729,0.00013893,2]
[368693837,1751302162291,-452.45295271,0.00013893,2]
[368693838,1751302162321,-490.0,0.00013893,2]
[368693839,1751302162622,-490.0,0.00013893,2]
[368693840,1751302163095,-7135.09409458,0.00013893,2]
[368693841,1751302163109,-8466.73590542,0.00013893,2]
[368693842,1751302163119,-929.0,0.00013893,2]
[368693843,1751302163128,-604.26409458,0.00013893,2]
[368693844,1751302163176,-490.0,0.00013892,2]
[368693845,1751302163185,-223.29590542,0.00013893,2]
[368693846,1751302163194,-490.0,0.00013893,2]
[368693847,1751302163203,-1452.25,0.00013893,2]
[368693848,1751302163213,-490.0,0.00013893,2]
[368693849,1751302163222,-3564.85,0.00013893,2]
[368693850,1751302163231,-418.62223658,0.00013893,2]
[368693851,1751302163241,-802.13,0.00013893,2]
[368693852,1751302163250,-490.0,0.00013893,2]
[368693853,1751302163259,-490.0,0.00013893,2]
[368693854,1751302163268,-1088.851858,0.00013893,2]
[368693855,1751302163301,-372.14146616,0.00013893,2]
[368693856,1751302163332,-2372.33,0.00013893,2]
[368693857,1751302163363,-490.0,0.00013893,2]
[368693858,1751302163393,-322.05022354,0.00013893,2]
[368693859,1751302163423,-490.0,0.00013893,2]
[368693860,1751302163454,-490.0,0.00013893,2]
[368693861,1751302163483,-436.9566206,0.00013893,2]
[368693862,1751302163562,-53.0433794,0.00013893,2]
[368693863,1751302163572,-2882.77,0.00013893,2]
[368693864,1751302163582,-1071.73,0.00013893,2]
[368693865,1751302163592,-1018.9783103,0.00013893,2]
[368693866,1751302163641,-2164.0516897,0.00013893,2]
[368693867,1751302163674,-2573.11,0.00013893,2]
[368693868,1751302163735,-3137.61,0.00013893,2]
[368693869,1751302163745,-1582.06,0.00013893,2]
[368693870,1751302163755,-543.1683103,0.00013893,2]
[368693871,1751302163779,-1241.3116897,0.00013893,2]
[368693872,1751302163788,-1624.65,0.00013893,2]
[368693873,1751302163797,-2557.73,0.00013893,2]
[368693874,1751302163806,-4576.3083103,0.00013893,2]
[368693875,1751302163830,-540.4716897,0.00013893,2]
[368693876,1751302163839,-490.0,0.00013893,2]
[368693877,1751302163848,-1883.19,0.00013893,2]
[368693878,1751302163857,-1069.83,0.00013893,2]
[368693879,1751302163867,-2537.65,0.00013893,2]
[368693880,1751302163876,-490.0,0.00013893,2]
[368693881,1751302163885,-490.0,0.00013893,2]
[368693882,1751302163895,-1735.07,0.00013893,2]
[368693883,1751302163904,-763.7883103,0.00013893,2]
[368693884,1751302163940,-739.9216897,0.00013893,2]
[368693885,1751302163968,-4135.41,0.00013893,2]
[368693886,1751302164013,-756.07,0.00013893,2]
[368693887,1751302164042,-1326.26,0.00013893,2]
[368693888,1751302164072,-490.0,0.00013893,2]
[368693889,1751302164101,-517.33,0.00013893,2]
[368693890,1751302164359,-1826.0216897,0.00013893,2]
[368693891,1751302164390,-525.6766206,0.00013893,2]
[368693892,1751302164534,-739.9216897,0.00013893,2]
[368693893,1751302164554,-4135.41,0.00013893,2]
[368693894,1751302164572,-249.3366206,0.00013893,2]
[368693895,1751302164590,-756.07,0.00013893,2]
[368693896,1751302164625,-4321.6333794,0.00013893,2]
[368693897,1751302164654,-490.0,0.00013893,2]
[368693898,1751302164761,-490.0,0.00013893,2]
[368693899,1751302164770,-490.0,0.00013893,2]
[368693900,1751302164779,-362.6366206,0.00013893,2]
[368693901,1751302164804,-2765.3833794,0.00013893,2]
[368693902,1751302164815,-2464.99,0.00013893,2]
[368693903,1751302164824,-1004.77,0.00013893,2]
[368693904,1751302164834,-3764.8566206,0.00013893,2]
[368693905,1751302164857,-2815.3633794,0.00013893,2]
[368693906,1751302164866,-490.0,0.00013893,2]
[368693907,1751302164876,-490.0,0.00013893,2]
[368693908,1751302164885,-490.0,0.00013893,2]
[368693909,1751302164895,-3419.74,0.00013893,2]
[368693910,1751302164905,-1928.92,0.00013893,2]
[368693911,1751302164914,-365.9766206,0.00013893,2]
[368693912,1751302164962,-174.6333794,0.00013893,2]
[368693913,1751302164992,-1439.34,0.00013893,2]
[368693914,1751302165020,-1688.24,0.00013893,2]
[368693915,1751302165048,-490.0,0.00013893,2]
[368693916,1751302165080,-759.78,0.00013893,2]
[368693919,1751302165149,-1447.66,0.00013893,2]
[368693921,1751302165159,-1198.68,0.00013893,2]
[368693922,1751302165169,-490.0,0.00013893,2]
[368693923,1751302165179,-1136.87,0.00013893,2]
[368693925,1751302165188,-490.0,0.00013893,2]
[368693926,1751302165198,-684.7966206,0.00013893,2]
[368693928,1751302165214,-1743.3033794,0.00013893,2]
[368693929,1751302165223,-490.0,0.00013893,2]
[368693930,1751302165233,-490.0,0.00013893,2]
[368693932,1751302165242,-490.0,0.00013893,2]
[368693933,1751302165252,-3656.35,0.00013893,2]
[368693934,1751302165262,-490.0,0.00013893,2]
[368693936,1751302165272,-490.0,0.00013893,2]
[368693937,1751302165282,-490.0,0.00013893,2]
[368693938,1751302165291,-490.0,0.00013893,2]
[368693940,1751302165301,-1170.3466206,0.00013893,2]
[368693943,1751302165350,-1767.2533794,0.00013893,2]
[368693944,1751302165382,-490.0,0.00013893,2]
[368693945,1751302165412,-490.0,0.00013893,2]
[368693946,1751302165443,-516.23,0.00013893,2]
[368693947,1751302165472,-850.12,0.00013893,2]
[368693948,1751302165608,-208.03,0.00013893,2]
[368693949,1751302165629,-490.0,0.00013893,2]
[368693950,1751302165655,-376.7332412,0.00013893,2]
[368693951,1751302165733,-1162.1367588,0.00013893,2]
[368693952,1751302165765,-490.0,0.00013893,2]
[368693953,1751302165794,-586.18,0.00013893,2]
[368693954,1751302165824,-490.0,0.00013893,2]
[368693955,1751302165853,-490.0,0.00013893,2]
[368693956,1751302166123,-490.0,0.00013893,2]
[368693957,1751302166153,-490.0,0.00013893,2]
[368693958,1751302166184,-242.0764824,0.00013893,2]
[368693959,1751302166868,-1119.2135176,0.00013893,2]
[368693960,1751302166901,-490.0,0.00013893,2]
[368693961,1751302166937,-1405.94,0.00013893,2]
[368693962,1751302166969,-1899.7729648,0.00013893,2]
[368693963,1751302167409,-170.1470352,0.00013893,2]
[368693964,1751302167419,-59.9797236,0.00013893,2]
[368693965,1751302167474,-1622.0302764,0.00013893,2]
[368693966,1751302167486,-150.7629648,0.00013893,2]
[368693967,1751302167550,-1162.1367588,0.00013893,2]
[368693968,1751302167571,-490.0,0.00013893,2]
[368693969,1751302167587,-537.8202764,0.00013893,2]
[368693970,1751302167598,-48.3597236,0.00013893,2]
[368693971,1751302167617,-490.0,0.00013893,2]
[368693972,1751302167641,-490.0,0.00013893,2]
[368693973,1751302167656,-58.0902764,0.00013893,2]
[368693974,1751302167670,-431.9097236,0.00013893,2]
[368693975,1751302167804,-254.0402764,0.00013893,2]
[368693976,1751302167819,-235.9597236,0.00013893,2]
[368693977,1751302167834,-632.3502764,0.00013893,2]
[368693978,1751302167844,-728.9397236,0.00013893,2]
[368693979,1751302168154,-1119.2135176,0.00013893,2]
[368693980,1751302168177,-490.0,0.00013893,2]
[368693981,1751302168197,-1405.94,0.00013893,2]
[368693982,1751302168220,-471.3167588,0.00013893,2]
[368693983,1751302168229,-490.0,0.00013893,2]
[368693984,1751302168239,-1108.6032412,0.00013893,2]
[368693998,1751302232477,-1565.81433885,0.00013115,2]
[368694000,1751302232490,-471.27566115,0.00013115,2]
[368694001,1751302232499,-154.984296,0.00013792,2]
[368694003,1751302232509,-81.30152072,0.00013891,2]
[368694006,1751302232522,-587.71452554,0.00013891,2]
[368694010,1751302232559,-530.98395374,0.00013891,2]
[368694011,1751302232569,-96.59890135,0.00013892,2]
[368694013,1751302232598,-903.40109865,0.00013892,2]
[368694015,1751302232607,-1226.0,0.00013892,2]
[368694016,1751302232617,-2868.77,0.00013892,2]
[368694017,1751302232628,-500.0,0.00013892,2]
[368694018,1751302232638,-2706.26,0.00013892,2]
[368694019,1751302232648,-3025.1,0.00013892,2]
[368694020,1751302232658,-2526.39,0.00013892,2]
[368694021,1751302232668,-3330.95,0.00013892,2]
[368694022,1751302232683,-8153.9667588,0.00013893,2]
[368694023,1751302232694,-490.0,0.00013893,2]
[368694024,1751302232704,-6224.71,0.00013893,2]
[368694025,1751302232714,-490.0,0.00013893,2]
[368694026,1751302232726,-490.0,0.00013893,2]
[368694027,1751302232736,-787.92,0.00013893,2]
[368694028,1751302232747,-490.0,0.00013893,2]
[368694029,1751302232760,-490.0,0.00013893,2]
[368694030,1751302232770,-490.0,0.00013893,2]
[368694031,1751302232780,-2230.39,0.00013893,2]
[368694032,1751302232791,-16508.04598768,0.00013893,2]
[368694033,1751302232818,-111922.07401232,0.00013893,2]
[368694034,1751302232839,-712.54,0.00013893,2]
[368694035,1751302232851,-686.35136947,0.00013893,2]
[368694036,1751302232864,-1074.46764908,0.00013893,2]
[368694037,1751302232885,-460.75959115,0.00013893,2]
[368694044,1751302237932,-850.94909984,0.00013893,2]
[368694215,1751302240022,-290.76265553,0.00013893,2]
[368694217,1751302240035,-5855.01963493,0.00013893,2]
[368694219,1751302240045,-490.0,0.00013893,2]
[368694221,1751302240055,-490.0,0.00013893,2]
[368694223,1751302240066,-490.0,0.00013893,2]
[368694225,1751302240076,-490.0,0.00013893,2]
[368694227,1751302240086,-490.0,0.00013893,2]
[368694229,1751302240095,-490.0,0.00013893,2]
[368694231,1751302240105,-490.0,0.00013893,2]